Workbook

Sheet Summary (Testimony Insert)
B4: Puget Sound Electric Settlement Agreement Revenue Change at Various Return on Equity Rates
F5: PSE Electric | I5: PSE Gas
G6: Change From | J6: Change From
B7: Return on | F7: Revenue | G7: Settlement | I7: Revenue | J7: Settlement
B8: Equity Used | D8: Note | F8: Requirement | G8: Agreement | I8: Requirement | J8: Agreement
F9: (A) | G9: (B) | I9: (C) | J9: (D)
B10: 0.095 | D10: [1] | F10: ='RCS-14 P1'!G50 -> 20160333.93 | G10: =F10-F10 -> 0 | I10: ='RCS-14 P2'!G37 -> -35465639.42 | J10: =I10-I10 -> 0
B11: 0.094 | F11: ='RCS-14 P1'!H50 -> 15987386.73 | G11: =F11-F10 -> -4172947.198 | I11: ='RCS-14 P2'!H37 -> -36888346.31 | J11: =I11-I10 -> -1422706.889
B12: 0.093 | F12: ='RCS-14 P1'!I50 -> 11814439.53 | G12: =F12-F10 -> -8345894.397 | I12: ='RCS-14 P2'!I37 -> -38311053.2 | J12: =I12-I10 -> -2845413.779
B13: 0.092 | D13: [2] | F13: ='RCS-14 P1'!J50 -> 7641492.332 | G13: =F13-F10 -> -12518841.59 | I13: ='RCS-14 P2'!J37 -> -39733760.09 | J13: =I13-I10 -> -4268120.668
B14: 0.091 | D14: [3] | F14: ='RCS-14 P1'!K50 -> 3468545.134 | G14: =F14-F10 -> -16691788.79 | I14: ='RCS-14 P2'!K37 -> -41156466.98 | J14: =I14-I10 -> -5690827.557
B15: 0.0885 | D15: [4] | F15: ='RCS-14 P1'!L50 -> -6546528.142 | G15: =F15-F10 -> -26706862.07 | I15: ='RCS-14 P2'!L37 -> -44570963.52 | J15: =I15-I10 -> -9105324.092
B17: Notes
B18: [1] Settlement Agreement | G18: [3] ICNU witness Gorman
B19: [2] Staff witness Parcell | G19: [4] PCU witness Woolridge

Sheet RCS-14 P1
A1: Puget Sound Energy | L1: Exhibit RCS-14
A2: Electric Restating and Pro Forma Adjustments | L2: Docket Nos. UE-170033 & UG-170034
L3: Page 1 of 2
B5: Exhibit A to the Multiparty Settlement Stipulation and Agreement | G5: Recalculated Using Indicated ROE
A6: Line No. | B6: Adjustment | C6: NOI | D6: Rate Base | E6: Revenue Requirement (Note 1) | G6: Revenue Requirement @ 9.50 % ROE | H6: Revenue Requirement @ 9.40 % ROE | I6: Revenue Requirement @ 9.30 % ROE | J6: Revenue Requirement @ 9.20 % ROE | K6: Revenue Requirement @ 9.10 % ROE | L6: Revenue Requirement @ 8.85 % ROE
C7: (A) | D7: (B) | E7: (C) | G7: (D) | H7: (E) | I7: (F) | J7: (G) | K7: (H) | L7: (I)
A8: 1 | B8: Actual Results of Operations | C8: 401002971.7 | D8: 5153204462 | E8: -15119000.89 | G8: =(D8*ROR!$H$10-C8)/0.619051 -> -15119000.89 | H8: =(D8*ROR!$H$17-C8)/0.619051 -> -19281181.76 | I8: =(D8*ROR!$H$24-C8)/0.619051 -> -23443362.63 | J8: =(D8*ROR!$H$31-C8)/0.619051 -> -27605543.5 | K8: =(D8*ROR!$H$38-C8)/0.619051 -> -31767724.37 | L8: =(D8*ROR!$H$45-C8)/0.619051 -> -41756958.47
A9: =A8+1 -> 2 | B9: Adjustment 13.01-Revenues & Expenses | C9: -29139113.53 | D9: 0 | E9: 47070618.62 | G9: =(D9*ROR!$H$10-C9)/0.619051 -> 47070618.62 | H9: =(D9*ROR!$H$17-C9)/0.619051 -> 47070618.62 | I9: =(D9*ROR!$H$24-C9)/0.619051 -> 47070618.62 | J9: =(D9*ROR!$H$31-C9)/0.619051 -> 47070618.62 | K9: =(D9*ROR!$H$38-C9)/0.619051 -> 47070618.62 | L9: =(D9*ROR!$H$45-C9)/0.619051 -> 47070618.62
A10: =A9+1 -> 3 | B10: Adjustment 13.02-Temperature Normalization | C10: 17527344 | D10: 0 | E10: -28313247.21 | G10: =(D10*ROR!$H$10-C10)/0.619051 -> -28313247.21 | H10: =(D10*ROR!$H$17-C10)/0.619051 -> -28313247.21 | I10: =(D10*ROR!$H$24-C10)/0.619051 -> -28313247.21 | J10: =(D10*ROR!$H$31-C10)/0.619051 -> -28313247.21 | K10: =(D10*ROR!$H$38-C10)/0.619051 -> -28313247.21 | L10: =(D10*ROR!$H$45-C10)/0.619051 -> -28313247.21
A11: 4 | B11: Adjustment 13.03-Pass-Through Revs. & Exps. | C11: -1000540.311 | D11: 0 | E11: 1616248.598 | G11: =(D11*ROR!$H$10-C11)/0.619051 -> 1616248.598 | H11: =(D11*ROR!$H$17-C11)/0.619051 -> 1616248.598 | I11: =(D11*ROR!$H$24-C11)/0.619051 -> 1616248.598 | J11: =(D11*ROR!$H$31-C11)/0.619051 -> 1616248.598 | K11: =(D11*ROR!$H$38-C11)/0.619051 -> 1616248.598 | L11: =(D11*ROR!$H$45-C11)/0.619051 -> 1616248.598
A12: 5 | B12: Adjustment 13.04-Federal Income Tax | C12: -27023238.81 | D12: 0 | E12: 43652685.82 | G12: =(D12*ROR!$H$10-C12)/0.619051 -> 43652685.82 | H12: =(D12*ROR!$H$17-C12)/0.619051 -> 43652685.82 | I12: =(D12*ROR!$H$24-C12)/0.619051 -> 43652685.82 | J12: =(D12*ROR!$H$31-C12)/0.619051 -> 43652685.82 | K12: =(D12*ROR!$H$38-C12)/0.619051 -> 43652685.82 | L12: =(D12*ROR!$H$45-C12)/0.619051 -> 43652685.82
A13: 6 | B13: Adjustment 13.05-Tax Benefit of Proforma Interest | C13: 54067781.16 | D13: 0 | E13: -87339784.86 | G13: =(D13*ROR!$H$10-C13)/0.619051 -> -87339784.86 | H13: =(D13*ROR!$H$17-C13)/0.619051 -> -87339784.86 | I13: =(D13*ROR!$H$24-C13)/0.619051 -> -87339784.86 | J13: =(D13*ROR!$H$31-C13)/0.619051 -> -87339784.86 | K13: =(D13*ROR!$H$38-C13)/0.619051 -> -87339784.86 | L13: =(D13*ROR!$H$45-C13)/0.619051 -> -87339784.86
A14: 7 | B14: Adjustment 13.06-Depreciation Study | C14: -34311787.72 | D14: -17155893.86 | E14: 53320226.9 | G14: =(D14*ROR!$H$10-C14)/0.619051 -> 53320226.9 | H14: =(D14*ROR!$H$17-C14)/0.619051 -> 53334083.51 | I14: =(D14*ROR!$H$24-C14)/0.619051 -> 53347940.11 | J14: =(D14*ROR!$H$31-C14)/0.619051 -> 53361796.72 | K14: =(D14*ROR!$H$38-C14)/0.619051 -> 53375653.33 | L14: =(D14*ROR!$H$45-C14)/0.619051 -> 53408909.19
A15: 8 | B15: Adjustment 13.06A-Reg. Asset Colstrip | C15: 0 | D15: 0 | E15: 0 | G15: =(D15*ROR!$H$10-C15)/0.619051 -> 0 | H15: =(D15*ROR!$H$17-C15)/0.619051 -> 0 | I15: =(D15*ROR!$H$24-C15)/0.619051 -> 0 | J15: =(D15*ROR!$H$31-C15)/0.619051 -> 0 | K15: =(D15*ROR!$H$38-C15)/0.619051 -> 0 | L15: =(D15*ROR!$H$45-C15)/0.619051 -> 0
A16: 9 | B16: Adjustment 13.07-Normalize Injuries & Damages | C16: 69387.27867 | D16: 0 | E16: -112086.5303 | G16: =(D16*ROR!$H$10-C16)/0.619051 -> -112086.5303 | H16: =(D16*ROR!$H$17-C16)/0.619051 -> -112086.5303 | I16: =(D16*ROR!$H$24-C16)/0.619051 -> -112086.5303 | J16: =(D16*ROR!$H$31-C16)/0.619051 -> -112086.5303 | K16: =(D16*ROR!$H$38-C16)/0.619051 -> -112086.5303 | L16: =(D16*ROR!$H$45-C16)/0.619051 -> -112086.5303
A17: 10 | B17: Adjustment 13.08-Bad Debts | C17: 681065 | D17: 0 | E17: -1100175.914 | G17: =(D17*ROR!$H$10-C17)/0.619051 -> -1100175.914 | H17: =(D17*ROR!$H$17-C17)/0.619051 -> -1100175.914 | I17: =(D17*ROR!$H$24-C17)/0.619051 -> -1100175.914 | J17: =(D17*ROR!$H$31-C17)/0.619051 -> -1100175.914 | K17: =(D17*ROR!$H$38-C17)/0.619051 -> -1100175.914 | L17: =(D17*ROR!$H$45-C17)/0.619051 -> -1100175.914
A18: 11 | B18: Adjustment 13.09-Incentive Pay | C18: -109903.1893 | D18: 0 | E18: 177534.9515 | G18: =(D18*ROR!$H$10-C18)/0.619051 -> 177534.9515 | H18: =(D18*ROR!$H$17-C18)/0.619051 -> 177534.9515 | I18: =(D18*ROR!$H$24-C18)/0.619051 -> 177534.9515 | J18: =(D18*ROR!$H$31-C18)/0.619051 -> 177534.9515 | K18: =(D18*ROR!$H$38-C18)/0.619051 -> 177534.9515 | L18: =(D18*ROR!$H$45-C18)/0.619051 -> 177534.9515
A19: 12 | B19: Adjustment 13.10-D&O Insurance | C19: 16141.12286 | D19: 0 | E19: -26073.97915 | G19: =(D19*ROR!$H$10-C19)/0.619051 -> -26073.97915 | H19: =(D19*ROR!$H$17-C19)/0.619051 -> -26073.97915 | I19: =(D19*ROR!$H$24-C19)/0.619051 -> -26073.97915 | J19: =(D19*ROR!$H$31-C19)/0.619051 -> -26073.97915 | K19: =(D19*ROR!$H$38-C19)/0.619051 -> -26073.97915 | L19: =(D19*ROR!$H$45-C19)/0.619051 -> -26073.97915
A20: 13 | B20: Adjustment 13.11-Interest on Customer Deposits | C20: -176605.6306 | D20: 0 | E20: 285284.4606 | G20: =(D20*ROR!$H$10-C20)/0.619051 -> 285284.4606 | H20: =(D20*ROR!$H$17-C20)/0.619051 -> 285284.4606 | I20: =(D20*ROR!$H$24-C20)/0.619051 -> 285284.4606 | J20: =(D20*ROR!$H$31-C20)/0.619051 -> 285284.4606 | K20: =(D20*ROR!$H$38-C20)/0.619051 -> 285284.4606 | L20: =(D20*ROR!$H$45-C20)/0.619051 -> 285284.4606
A21: 14 | B21: Adjustment 13.12-Rate Case Expenses | C21: -264904.5668 | D21: 0 | E21: 427920.4246 | G21: =(D21*ROR!$H$10-C21)/0.619051 -> 427920.4246 | H21: =(D21*ROR!$H$17-C21)/0.619051 -> 427920.4246 | I21: =(D21*ROR!$H$24-C21)/0.619051 -> 427920.4246 | J21: =(D21*ROR!$H$31-C21)/0.619051 -> 427920.4246 | K21: =(D21*ROR!$H$38-C21)/0.619051 -> 427920.4246 | L21: =(D21*ROR!$H$45-C21)/0.619051 -> 427920.4246
A22: 15 | B22: Adjustment 13.13-Deferred G/L on Property Sales | C22: 171199.7798 | D22: 0 | E22: -276551.9801 | G22: =(D22*ROR!$H$10-C22)/0.619051 -> -276551.9801 | H22: =(D22*ROR!$H$17-C22)/0.619051 -> -276551.9801 | I22: =(D22*ROR!$H$24-C22)/0.619051 -> -276551.9801 | J22: =(D22*ROR!$H$31-C22)/0.619051 -> -276551.9801 | K22: =(D22*ROR!$H$38-C22)/0.619051 -> -276551.9801 | L22: =(D22*ROR!$H$45-C22)/0.619051 -> -276551.9801
A23: 16 | B23: Adjustment 13.14-Property & Liability Ins | C23: 66147.12055 | D23: 0 | E23: -106852.4573 | G23: =(D23*ROR!$H$10-C23)/0.619051 -> -106852.4573 | H23: =(D23*ROR!$H$17-C23)/0.619051 -> -106852.4573 | I23: =(D23*ROR!$H$24-C23)/0.619051 -> -106852.4573 | J23: =(D23*ROR!$H$31-C23)/0.619051 -> -106852.4573 | K23: =(D23*ROR!$H$38-C23)/0.619051 -> -106852.4573 | L23: =(D23*ROR!$H$45-C23)/0.619051 -> -106852.4573
A24: 17 | B24: Adjustment 13.15-Pension Plan | C24: -1184945.445 | D24: 0 | E24: 1914132.188 | G24: =(D24*ROR!$H$10-C24)/0.619051 -> 1914132.188 | H24: =(D24*ROR!$H$17-C24)/0.619051 -> 1914132.188 | I24: =(D24*ROR!$H$24-C24)/0.619051 -> 1914132.188 | J24: =(D24*ROR!$H$31-C24)/0.619051 -> 1914132.188 | K24: =(D24*ROR!$H$38-C24)/0.619051 -> 1914132.188 | L24: =(D24*ROR!$H$45-C24)/0.619051 -> 1914132.188
A25: 18 | B25: Adjustment 13.16-Wage Increase | C25: -1357715.589 | D25: 0 | E25: 2193220.896 | G25: =(D25*ROR!$H$10-C25)/0.619051 -> 2193220.896 | H25: =(D25*ROR!$H$17-C25)/0.619051 -> 2193220.896 | I25: =(D25*ROR!$H$24-C25)/0.619051 -> 2193220.896 | J25: =(D25*ROR!$H$31-C25)/0.619051 -> 2193220.896 | K25: =(D25*ROR!$H$38-C25)/0.619051 -> 2193220.896 | L25: =(D25*ROR!$H$45-C25)/0.619051 -> 2193220.896
A26: 19 | B26: Adjustment 13.17-Investment Plan | C26: -96704.6764 | D26: 0 | E26: 156214.3933 | G26: =(D26*ROR!$H$10-C26)/0.619051 -> 156214.3933 | H26: =(D26*ROR!$H$17-C26)/0.619051 -> 156214.3933 | I26: =(D26*ROR!$H$24-C26)/0.619051 -> 156214.3933 | J26: =(D26*ROR!$H$31-C26)/0.619051 -> 156214.3933 | K26: =(D26*ROR!$H$38-C26)/0.619051 -> 156214.3933 | L26: =(D26*ROR!$H$45-C26)/0.619051 -> 156214.3933
A27: 20 | B27: Adjustment 13.18-Employee Insurance | C27: -121750.9292 | D27: 0 | E27: 196673.5039 | G27: =(D27*ROR!$H$10-C27)/0.619051 -> 196673.5039 | H27: =(D27*ROR!$H$17-C27)/0.619051 -> 196673.5039 | I27: =(D27*ROR!$H$24-C27)/0.619051 -> 196673.5039 | J27: =(D27*ROR!$H$31-C27)/0.619051 -> 196673.5039 | K27: =(D27*ROR!$H$38-C27)/0.619051 -> 196673.5039 | L27: =(D27*ROR!$H$45-C27)/0.619051 -> 196673.5039
A28: 21 | B28: Adjustment 13.19-Environmental Remediation | C28: -925459.9881 | D28: 0 | E28: 1494965.662 | G28: =(D28*ROR!$H$10-C28)/0.619051 -> 1494965.662 | H28: =(D28*ROR!$H$17-C28)/0.619051 -> 1494965.662 | I28: =(D28*ROR!$H$24-C28)/0.619051 -> 1494965.662 | J28: =(D28*ROR!$H$31-C28)/0.619051 -> 1494965.662 | K28: =(D28*ROR!$H$38-C28)/0.619051 -> 1494965.662 | L28: =(D28*ROR!$H$45-C28)/0.619051 -> 1494965.662
A29: 22 | B29: Adjustment 13.20-Payment Processing Costs | C29: -2010221.157 | D29: 0 | E29: 3247262.596 | G29: =(D29*ROR!$H$10-C29)/0.619051 -> 3247262.596 | H29: =(D29*ROR!$H$17-C29)/0.619051 -> 3247262.596 | I29: =(D29*ROR!$H$24-C29)/0.619051 -> 3247262.596 | J29: =(D29*ROR!$H$31-C29)/0.619051 -> 3247262.596 | K29: =(D29*ROR!$H$38-C29)/0.619051 -> 3247262.596 | L29: =(D29*ROR!$H$45-C29)/0.619051 -> 3247262.596
A30: 23 | B30: Adjustment 13.21-South King Service Center | C30: 434046.4399 | D30: 15915060.1 | E30: 1252720.903 | G30: =(D30*ROR!$H$10-C30)/0.619051 -> 1252720.903 | H30: =(D30*ROR!$H$17-C30)/0.619051 -> 1239866.501 | I30: =(D30*ROR!$H$24-C30)/0.619051 -> 1227012.1 | J30: =(D30*ROR!$H$31-C30)/0.619051 -> 1214157.699 | K30: =(D30*ROR!$H$38-C30)/0.619051 -> 1201303.297 | L30: =(D30*ROR!$H$45-C30)/0.619051 -> 1170452.734
A31: 24 | B31: Adjustment 13.22-Excise Tax and WUTC Filing Fee | C31: 10262.3171 | D31: 0 | E31: -16577.49862 | G31: =(D31*ROR!$H$10-C31)/0.619051 -> -16577.49862 | H31: =(D31*ROR!$H$17-C31)/0.619051 -> -16577.49862 | I31: =(D31*ROR!$H$24-C31)/0.619051 -> -16577.49862 | J31: =(D31*ROR!$H$31-C31)/0.619051 -> -16577.49862 | K31: =(D31*ROR!$H$38-C31)/0.619051 -> -16577.49862 | L31: =(D31*ROR!$H$45-C31)/0.619051 -> -16577.49862
A32: 25 | B32: Adjustment 13.23-ISWC and RB Adjustment | C32: 0 | D32: 19006089.9 | E32: 2333350.293 | G32: =(D32*ROR!$H$10-C32)/0.619051 -> 2333350.293 | H32: =(D32*ROR!$H$17-C32)/0.619051 -> 2317999.304 | I32: =(D32*ROR!$H$24-C32)/0.619051 -> 2302648.315 | J32: =(D32*ROR!$H$31-C32)/0.619051 -> 2287297.327 | K32: =(D32*ROR!$H$38-C32)/0.619051 -> 2271946.338 | L32: =(D32*ROR!$H$45-C32)/0.619051 -> 2235103.965
A33: 26 | B33: Adjustment 13.24-Legal Cost Adjustment | C33: 0 | D33: 0 | E33: 0 | G33: =(D33*ROR!$H$10-C33)/0.619051 -> 0 | H33: =(D33*ROR!$H$17-C33)/0.619051 -> 0 | I33: =(D33*ROR!$H$24-C33)/0.619051 -> 0 | J33: =(D33*ROR!$H$31-C33)/0.619051 -> 0 | K33: =(D33*ROR!$H$38-C33)/0.619051 -> 0 | L33: =(D33*ROR!$H$45-C33)/0.619051 -> 0
A34: 27 | B34: Adjustment 13.25-Black Box Adjustment | C34: 619050.9 | D34: 0 | E34: -999999.8385 | G34: =(D34*ROR!$H$10-C34)/0.619051 -> -999999.8385 | H34: =(D34*ROR!$H$17-C34)/0.619051 -> -999999.8385 | I34: =(D34*ROR!$H$24-C34)/0.619051 -> -999999.8385 | J34: =(D34*ROR!$H$31-C34)/0.619051 -> -999999.8385 | K34: =(D34*ROR!$H$38-C34)/0.619051 -> -999999.8385 | L34: =(D34*ROR!$H$45-C34)/0.619051 -> -999999.8385
A35: 28 | B35: Adjustment 14.01-Power Costs | C35: 1185175.274 | D35: 0 | E35: -1914503.448 | G35: =(D35*ROR!$H$10-C35)/0.619051 -> -1914503.448 | H35: =(D35*ROR!$H$17-C35)/0.619051 -> -1914503.448 | I35: =(D35*ROR!$H$24-C35)/0.619051 -> -1914503.448 | J35: =(D35*ROR!$H$31-C35)/0.619051 -> -1914503.448 | K35: =(D35*ROR!$H$38-C35)/0.619051 -> -1914503.448 | L35: =(D35*ROR!$H$45-C35)/0.619051 -> -1914503.448
A36: 29 | B36: Adjustment 14.02-Montana Electric Energy Tax | C36: 148015.5018 | D36: 0 | E36: -239100.6587 | G36: =(D36*ROR!$H$10-C36)/0.619051 -> -239100.6587 | H36: =(D36*ROR!$H$17-C36)/0.619051 -> -239100.6587 | I36: =(D36*ROR!$H$24-C36)/0.619051 -> -239100.6587 | J36: =(D36*ROR!$H$31-C36)/0.619051 -> -239100.6587 | K36: =(D36*ROR!$H$38-C36)/0.619051 -> -239100.6587 | L36: =(D36*ROR!$H$45-C36)/0.619051 -> -239100.6587
A37: 30 | B37: Adjustment 14.03-Wild Horse Solar | C37: 137890.3787 | D37: -1969341.336 | E37: -464517.9803 | G37: =(D37*ROR!$H$10-C37)/0.619051 -> -464517.9803 | H37: =(D37*ROR!$H$17-C37)/0.619051 -> -462927.3671 | I37: =(D37*ROR!$H$24-C37)/0.619051 -> -461336.754 | J37: =(D37*ROR!$H$31-C37)/0.619051 -> -459746.1408 | K37: =(D37*ROR!$H$38-C37)/0.619051 -> -458155.5276 | L37: =(D37*ROR!$H$45-C37)/0.619051 -> -454338.0561
A38: 31 | B38: Adjustment 14.04-ASC 815 (Prev. SFAS 133) | C38: -41672583.96 | D38: 0 | E38: 67316883.36 | G38: =(D38*ROR!$H$10-C38)/0.619051 -> 67316883.36 | H38: =(D38*ROR!$H$17-C38)/0.619051 -> 67316883.36 | I38: =(D38*ROR!$H$24-C38)/0.619051 -> 67316883.36 | J38: =(D38*ROR!$H$31-C38)/0.619051 -> 67316883.36 | K38: =(D38*ROR!$H$38-C38)/0.619051 -> 67316883.36 | L38: =(D38*ROR!$H$45-C38)/0.619051 -> 67316883.36
A39: 32 | B39: Adjustment 14.05-Storm Damage | C39: -6137438.176 | D39: 0 | E39: 9914269.06 | G39: =(D39*ROR!$H$10-C39)/0.619051 -> 9914269.06 | H39: =(D39*ROR!$H$17-C39)/0.619051 -> 9914269.06 | I39: =(D39*ROR!$H$24-C39)/0.619051 -> 9914269.06 | J39: =(D39*ROR!$H$31-C39)/0.619051 -> 9914269.06 | K39: =(D39*ROR!$H$38-C39)/0.619051 -> 9914269.06 | L39: =(D39*ROR!$H$45-C39)/0.619051 -> 9914269.06
A40: 33 | B40: Adjustment 14.06-Reg Assets & Liabilities | C40: 1736211.951 | D40: -44085326.49 | E40: -8216926.819 | G40: =(D40*ROR!$H$10-C40)/0.619051 -> -8216926.819 | H40: =(D40*ROR!$H$17-C40)/0.619051 -> -8181319.635 | I40: =(D40*ROR!$H$24-C40)/0.619051 -> -8145712.45 | J40: =(D40*ROR!$H$31-C40)/0.619051 -> -8110105.265 | K40: =(D40*ROR!$H$38-C40)/0.619051 -> -8074498.081 | L40: =(D40*ROR!$H$45-C40)/0.619051 -> -7989040.838
A41: 34 | B41: Adjustment 14.07-Glacier Battery Storage | C41: -145490.3226 | D41: 2842787.061 | E41: 584026.4199 | G41: =(D41*ROR!$H$10-C41)/0.619051 -> 584026.4199 | H41: =(D41*ROR!$H$17-C41)/0.619051 -> 581730.3352 | I41: =(D41*ROR!$H$24-C41)/0.619051 -> 579434.2505 | J41: =(D41*ROR!$H$31-C41)/0.619051 -> 577138.1658 | K41: =(D41*ROR!$H$38-C41)/0.619051 -> 574842.0811 | L41: =(D41*ROR!$H$45-C41)/0.619051 -> 569331.4778
A42: 35 | B42: Adjustment 14.08-Energy Imbalance Market | C42: 0 | D42: 0 | E42: 0 | G42: =(D42*ROR!$H$10-C42)/0.619051 -> 0 | H42: =(D42*ROR!$H$17-C42)/0.619051 -> 0 | I42: =(D42*ROR!$H$24-C42)/0.619051 -> 0 | J42: =(D42*ROR!$H$31-C42)/0.619051 -> 0 | K42: =(D42*ROR!$H$38-C42)/0.619051 -> 0 | L42: =(D42*ROR!$H$45-C42)/0.619051 -> 0
A43: 36 | B43: Adjustment 14.09-Goldendale Capacity Upgrade | C43: 2156.094842 | D43: 18140954.41 | E43: 2223655.951 | G43: =(D43*ROR!$H$10-C43)/0.619051 -> 2223655.951 | H43: =(D43*ROR!$H$17-C43)/0.619051 -> 2209003.722 | I43: =(D43*ROR!$H$24-C43)/0.619051 -> 2194351.492 | J43: =(D43*ROR!$H$31-C43)/0.619051 -> 2179699.263 | K43: =(D43*ROR!$H$38-C43)/0.619051 -> 2165047.034 | L43: =(D43*ROR!$H$45-C43)/0.619051 -> 2129881.683
A44: 37 | B44: Adjustment 14.10-Mint Farm Capacity Upgrade | C44: 0 | D44: 19004590.01 | E44: 2333166.154 | G44: =(D44*ROR!$H$10-C44)/0.619051 -> 2333166.154 | H44: =(D44*ROR!$H$17-C44)/0.619051 -> 2317816.376 | I44: =(D44*ROR!$H$24-C44)/0.619051 -> 2302466.599 | J44: =(D44*ROR!$H$31-C44)/0.619051 -> 2287116.822 | K44: =(D44*ROR!$H$38-C44)/0.619051 -> 2271767.044 | L44: =(D44*ROR!$H$45-C44)/0.619051 -> 2234927.579
A45: 38 | B45: Adjustment 14.11-White River | C45: -3288310.238 | D45: -4108724.302 | E45: 4807434.591 | G45: =(D45*ROR!$H$10-C45)/0.619051 -> 4807434.591 | H45: =(D45*ROR!$H$17-C45)/0.619051 -> 4810753.158 | I45: =(D45*ROR!$H$24-C45)/0.619051 -> 4814071.725 | J45: =(D45*ROR!$H$31-C45)/0.619051 -> 4817390.292 | K45: =(D45*ROR!$H$38-C45)/0.619051 -> 4820708.859 | L45: =(D45*ROR!$H$45-C45)/0.619051 -> 4828673.419
A46: 39 | B46: Adjustment 14.12-Reclass of Hydro Treasury Grants | C46: -2131857 | D46: 5739615 | E46: 4148394.462 | G46: =(D46*ROR!$H$10-C46)/0.619051 -> 4148394.462 | H46: =(D46*ROR!$H$17-C46)/0.619051 -> 4143758.644 | I46: =(D46*ROR!$H$24-C46)/0.619051 -> 4139122.827 | J46: =(D46*ROR!$H$31-C46)/0.619051 -> 4134487.009 | K46: =(D46*ROR!$H$38-C46)/0.619051 -> 4129851.192 | L46: =(D46*ROR!$H$45-C46)/0.619051 -> 4118725.229
A47: 40 | B47: Adjustment 14.13-Production Adjustment | C47: 32768.97647 | D47: 0 | E47: -52934.21135 | G47: =(D47*ROR!$H$10-C47)/0.619051 -> -52934.21135 | H47: =(D47*ROR!$H$17-C47)/0.619051 -> -52934.21135 | I47: =(D47*ROR!$H$24-C47)/0.619051 -> -52934.21135 | J47: =(D47*ROR!$H$31-C47)/0.619051 -> -52934.21135 | K47: =(D47*ROR!$H$38-C47)/0.619051 -> -52934.21135 | L47: =(D47*ROR!$H$45-C47)/0.619051 -> -52934.21135
A48: 41 | B48: Adjusted Results of Operations | C48: 326809043.8 | D48: 5166534272 | E48: 106368555.9 | G48: =SUM(G8:G47) -> 106368555.9 | H48: =SUM(H8:H47) -> 102195608.7 | I48: =SUM(I8:I47) -> 98022661.53 | J48: =SUM(J8:J47) -> 93849714.33 | K48: 89676767.13 | L48: 79661693.86
A49: 42 | B49: Changes to Other Price Schedules | E49: -86208222 | G49: =E49 -> -86208222 | H49: =E49 -> -86208222 | I49: =E49 -> -86208222 | J49: =E49 -> -86208222 | K49: =E49 -> -86208222 | L49: =E49 -> -86208222
A50: 43 | B50: Overall Electric Revenue Requirement Deficiency Using Different ROEs | E50: 20160333.93 | G50: =G48+G49 -> 20160333.93 | H50: =H48+H49 -> 15987386.73 | I50: =I48+I49 -> 11814439.53 | J50: =J48+J49 -> 7641492.332 | K50: 3468545.134 | L50: -6546528.142
A51: 44 | B51: Overall Electric Revenue Requirement Deficiency per Settlement | G51: 20160333.93 | H51: 20160333.93 | I51: 20160333.93 | J51: 20160333.93 | K51: 20160333.93 | L51: 20160333.93
A52: 45 | B52: Difference | G52: =G50-G51 -> 0 | H52: =H50-H51 -> -4172947.198 | I52: -8345894.397 | J52: -12518841.59 | K52: -16691788.79 | L52: -26706862.07
A54: Notes and Source
A55: Cols. A-C: Amounts from Exhibit A to Multiparty Settlement Stipulation and Agreement
A56: Col. D: (Note 1) = calculated as Column (B) x 7.60% rate of return per paragraph 11 of the Settlement less Column (A) and the result is divided by the electric conversion factor of .619501 from Exhibit MCC-3r at 3

Sheet RCS-14 P2
A1: Puget Sound Energy | L1: Exhibit RCS-14
A2: Gas Restating and Pro Forma Adjustments | L2: Docket Nos. UE-170033 & UG-170034
L3: Page 2 of 2
B5: Exhibit A to the Multiparty Settlement Stipulation and Agreement | G5: Recalculated Using Indicated ROE
A6: Line No. | B6: Adjustment | C6: NOI | D6: Rate Base | E6: Revenue Requirement (Note 1) | G6: Revenue Requirement @ 9.50 % ROE | H6: Revenue Requirement @ 9.40 % ROE | I6: Revenue Requirement @ 9.30 % ROE | J6: Revenue Requirement @ 9.20 % ROE | K6: Revenue Requirement @ 9.10 % ROE | L6: Revenue Requirement @ 8.85 % ROE
C7: (A) | D7: (B) | E7: (C) | G7: (D) | H7: (E) | I7: (F) | J7: (G) | K7: (H) | L7: (I)
A8: 1 | B8: Actual Results of Operations | C8: 119145768.9 | D8: 1727319760 | E8: 19551185.33 | G8: =(D8*ROR!$H$10-C8)/0.62045 -> 19551185.33 | H8: =(D8*ROR!$H$17-C8)/0.62045 -> 18159195.84 | I8: =(D8*ROR!$H$24-C8)/0.62045 -> 16767206.35 | J8: =(D8*ROR!$H$31-C8)/0.62045 -> 15375216.86 | K8: =(D8*ROR!$H$38-C8)/0.62045 -> 13983227.36 | L8: =(D8*ROR!$H$45-C8)/0.62045 -> 10642452.58
A9: =A8+1 -> 2 | B9: Adjustment 11.01-Revenues & Expenses | C9: -32674131.18 | D9: 0 | E9: 52661989.17 | G9: =(D9*ROR!$H$10-C9)/0.62045 -> 52661989.17 | H9: =(D9*ROR!$H$17-C9)/0.62045 -> 52661989.17 | I9: =(D9*ROR!$H$24-C9)/0.62045 -> 52661989.17 | J9: =(D9*ROR!$H$31-C9)/0.62045 -> 52661989.17 | K9: =(D9*ROR!$H$38-C9)/0.62045 -> 52661989.17 | L9: =(D9*ROR!$H$45-C9)/0.62045 -> 52661989.17
A10: =A9+1 -> 3 | B10: Adjustment 11.02-Temperature Normalization | C10: 16046445.39 | D10: 0 | E10: -25862592.3 | G10: =(D10*ROR!$H$10-C10)/0.62045 -> -25862592.3 | H10: =(D10*ROR!$H$17-C10)/0.62045 -> -25862592.3 | I10: =(D10*ROR!$H$24-C10)/0.62045 -> -25862592.3 | J10: =(D10*ROR!$H$31-C10)/0.62045 -> -25862592.3 | K10: =(D10*ROR!$H$38-C10)/0.62045 -> -25862592.3 | L10: =(D10*ROR!$H$45-C10)/0.62045 -> -25862592.3
A11: 4 | B11: Adjustment 11.03-Pass-Through Revs. & Exps. | C11: 736148.0666 | D11: 0 | E11: -1186474.441 | G11: =(D11*ROR!$H$10-C11)/0.62045 -> -1186474.441 | H11: =(D11*ROR!$H$17-C11)/0.62045 -> -1186474.441 | I11: =(D11*ROR!$H$24-C11)/0.62045 -> -1186474.441 | J11: =(D11*ROR!$H$31-C11)/0.62045 -> -1186474.441 | K11: =(D11*ROR!$H$38-C11)/0.62045 -> -1186474.441 | L11: =(D11*ROR!$H$45-C11)/0.62045 -> -1186474.441
A12: 5 | B12: Adjustment 11.04-Federal Income Tax | C12: 700821.9081 | D12: 0 | E12: -1129538.09 | G12: =(D12*ROR!$H$10-C12)/0.62045 -> -1129538.09 | H12: =(D12*ROR!$H$17-C12)/0.62045 -> -1129538.09 | I12: =(D12*ROR!$H$24-C12)/0.62045 -> -1129538.09 | J12: =(D12*ROR!$H$31-C12)/0.62045 -> -1129538.09 | K12: =(D12*ROR!$H$38-C12)/0.62045 -> -1129538.09 | L12: =(D12*ROR!$H$45-C12)/0.62045 -> -1129538.09
A13: 6 | B13: Adjustment 11.05-Tax Benefit of Proforma Interest | C13: 18475297.98 | D13: 0 | E13: -29777255.19 | G13: =(D13*ROR!$H$10-C13)/0.62045 -> -29777255.19 | H13: =(D13*ROR!$H$17-C13)/0.62045 -> -29777255.19 | I13: =(D13*ROR!$H$24-C13)/0.62045 -> -29777255.19 | J13: =(D13*ROR!$H$31-C13)/0.62045 -> -29777255.19 | K13: =(D13*ROR!$H$38-C13)/0.62045 -> -29777255.19 | L13: =(D13*ROR!$H$45-C13)/0.62045 -> -29777255.19
A14: 7 | B14: Adjustment 11.06-Depreciation Study | C14: 13174097.54 | D14: 6587048.769 | E14: -20426274.21 | G14: =(D14*ROR!$H$10-C14)/0.62045 -> -20426274.21 | H14: =(D14*ROR!$H$17-C14)/0.62045 -> -20431582.49 | I14: =(D14*ROR!$H$24-C14)/0.62045 -> -20436890.77 | J14: =(D14*ROR!$H$31-C14)/0.62045 -> -20442199.06 | K14: =(D14*ROR!$H$38-C14)/0.62045 -> -20447507.34 | L14: =(D14*ROR!$H$45-C14)/0.62045 -> -20460247.22
A15: 8 | B15: Adjustment 11.07-Normalize Injuries & Damages | C15: -57737.62534 | D15: 0 | E15: 93057.66031 | G15: =(D15*ROR!$H$10-C15)/0.62045 -> 93057.66031 | H15: =(D15*ROR!$H$17-C15)/0.62045 -> 93057.66031 | I15: =(D15*ROR!$H$24-C15)/0.62045 -> 93057.66031 | J15: =(D15*ROR!$H$31-C15)/0.62045 -> 93057.66031 | K15: =(D15*ROR!$H$38-C15)/0.62045 -> 93057.66031 | L15: =(D15*ROR!$H$45-C15)/0.62045 -> 93057.66031
A16: 9 | B16: Adjustment 11.08-Bad Debts | C16: 35240 | D16: 0 | E16: -56797.4857 | G16: =(D16*ROR!$H$10-C16)/0.62045 -> -56797.4857 | H16: =(D16*ROR!$H$17-C16)/0.62045 -> -56797.4857 | I16: =(D16*ROR!$H$24-C16)/0.62045 -> -56797.4857 | J16: =(D16*ROR!$H$31-C16)/0.62045 -> -56797.4857 | K16: =(D16*ROR!$H$38-C16)/0.62045 -> -56797.4857 | L16: =(D16*ROR!$H$45-C16)/0.62045 -> -56797.4857
A17: 10 | B17: Adjustment 11.09-Incentive Pay | C17: 104022.8736 | D17: 0 | E17: -167657.1417 | G17: =(D17*ROR!$H$10-C17)/0.62045 -> -167657.1417 | H17: =(D17*ROR!$H$17-C17)/0.62045 -> -167657.1417 | I17: =(D17*ROR!$H$24-C17)/0.62045 -> -167657.1417 | J17: =(D17*ROR!$H$31-C17)/0.62045 -> -167657.1417 | K17: =(D17*ROR!$H$38-C17)/0.62045 -> -167657.1417 | L17: =(D17*ROR!$H$45-C17)/0.62045 -> -167657.1417
A18: 11 | B18: Adjustment 11.10-D&O Insurance | C18: 11635.7191 | D18: 0 | E18: -18753.67733 | G18: =(D18*ROR!$H$10-C18)/0.62045 -> -18753.67733 | H18: =(D18*ROR!$H$17-C18)/0.62045 -> -18753.67733 | I18: =(D18*ROR!$H$24-C18)/0.62045 -> -18753.67733 | J18: =(D18*ROR!$H$31-C18)/0.62045 -> -18753.67733 | K18: =(D18*ROR!$H$38-C18)/0.62045 -> -18753.67733 | L18: =(D18*ROR!$H$45-C18)/0.62045 -> -18753.67733
A19: 12 | B19: Adjustment 11.11-Interest on Customer Deposits | C19: -50136.58735 | D19: 0 | E19: 80806.81337 | G19: =(D19*ROR!$H$10-C19)/0.62045 -> 80806.81337 | H19: =(D19*ROR!$H$17-C19)/0.62045 -> 80806.81337 | I19: =(D19*ROR!$H$24-C19)/0.62045 -> 80806.81337 | J19: =(D19*ROR!$H$31-C19)/0.62045 -> 80806.81337 | K19: =(D19*ROR!$H$38-C19)/0.62045 -> 80806.81337 | L19: =(D19*ROR!$H$45-C19)/0.62045 -> 80806.81337
A20: 13 | B20: Adjustment 11.12-Rate Case Expenses | C20: -280617.3062 | D20: 0 | E20: 452280.2905 | G20: =(D20*ROR!$H$10-C20)/0.62045 -> 452280.2905 | H20: =(D20*ROR!$H$17-C20)/0.62045 -> 452280.2905 | I20: =(D20*ROR!$H$24-C20)/0.62045 -> 452280.2905 | J20: =(D20*ROR!$H$31-C20)/0.62045 -> 452280.2905 | K20: =(D20*ROR!$H$38-C20)/0.62045 -> 452280.2905 | L20: =(D20*ROR!$H$45-C20)/0.62045 -> 452280.2905
A21: 14 | B21: Adjustment 11.13-Deferred G/L on Property Sales | C21: -105089.8203 | D21: 0 | E21: 169376.7755 | G21: =(D21*ROR!$H$10-C21)/0.62045 -> 169376.7755 | H21: =(D21*ROR!$H$17-C21)/0.62045 -> 169376.7755 | I21: =(D21*ROR!$H$24-C21)/0.62045 -> 169376.7755 | J21: =(D21*ROR!$H$31-C21)/0.62045 -> 169376.7755 | K21: =(D21*ROR!$H$38-C21)/0.62045 -> 169376.7755 | L21: =(D21*ROR!$H$45-C21)/0.62045 -> 169376.7755
A22: 15 | B22: Adjustment 11.14-Property & Liability Ins | C22: 45174.2503 | D22: 0 | E22: -72808.8489 | G22: =(D22*ROR!$H$10-C22)/0.62045 -> -72808.8489 | H22: =(D22*ROR!$H$17-C22)/0.62045 -> -72808.8489 | I22: =(D22*ROR!$H$24-C22)/0.62045 -> -72808.8489 | J22: =(D22*ROR!$H$31-C22)/0.62045 -> -72808.8489 | K22: =(D22*ROR!$H$38-C22)/0.62045 -> -72808.8489 | L22: =(D22*ROR!$H$45-C22)/0.62045 -> -72808.8489
A23: 16 | B23: Adjustment 11.15-Pension Plan | C23: -572091.0987 | D23: 0 | E23: 922058.3426 | G23: =(D23*ROR!$H$10-C23)/0.62045 -> 922058.3426 | H23: =(D23*ROR!$H$17-C23)/0.62045 -> 922058.3426 | I23: =(D23*ROR!$H$24-C23)/0.62045 -> 922058.3426 | J23: =(D23*ROR!$H$31-C23)/0.62045 -> 922058.3426 | K23: =(D23*ROR!$H$38-C23)/0.62045 -> 922058.3426 | L23: =(D23*ROR!$H$45-C23)/0.62045 -> 922058.3426
A24: 17 | B24: Adjustment 11.16-Wage Increase | C24: -907409.2501 | D24: 0 | E24: 1462501.813 | G24: =(D24*ROR!$H$10-C24)/0.62045 -> 1462501.813 | H24: =(D24*ROR!$H$17-C24)/0.62045 -> 1462501.813 | I24: =(D24*ROR!$H$24-C24)/0.62045 -> 1462501.813 | J24: =(D24*ROR!$H$31-C24)/0.62045 -> 1462501.813 | K24: =(D24*ROR!$H$38-C24)/0.62045 -> 1462501.813 | L24: =(D24*ROR!$H$45-C24)/0.62045 -> 1462501.813
A25: 18 | B25: Adjustment 11.17-Investment Plan | C25: -46688.82597 | D25: 0 | E25: 75249.94113 | G25: =(D25*ROR!$H$10-C25)/0.62045 -> 75249.94113 | H25: =(D25*ROR!$H$17-C25)/0.62045 -> 75249.94113 | I25: =(D25*ROR!$H$24-C25)/0.62045 -> 75249.94113 | J25: =(D25*ROR!$H$31-C25)/0.62045 -> 75249.94113 | K25: =(D25*ROR!$H$38-C25)/0.62045 -> 75249.94113 | L25: =(D25*ROR!$H$45-C25)/0.62045 -> 75249.94113
A26: 19 | B26: Adjustment 11.18-Employee Insurance | C26: -58781.16811 | D26: 0 | E26: 94739.57307 | G26: =(D26*ROR!$H$10-C26)/0.62045 -> 94739.57307 | H26: =(D26*ROR!$H$17-C26)/0.62045 -> 94739.57307 | I26: =(D26*ROR!$H$24-C26)/0.62045 -> 94739.57307 | J26: =(D26*ROR!$H$31-C26)/0.62045 -> 94739.57307 | K26: =(D26*ROR!$H$38-C26)/0.62045 -> 94739.57307 | L26: =(D26*ROR!$H$45-C26)/0.62045 -> 94739.57307
A27: 20 | B27: Adjustment 11.19-Environmental Remediation | C27: -5592127.789 | D27: 0 | E27: 9013019.243 | G27: =(D27*ROR!$H$10-C27)/0.62045 -> 9013019.243 | H27: =(D27*ROR!$H$17-C27)/0.62045 -> 9013019.243 | I27: =(D27*ROR!$H$24-C27)/0.62045 -> 9013019.243 | J27: =(D27*ROR!$H$31-C27)/0.62045 -> 9013019.243 | K27: =(D27*ROR!$H$38-C27)/0.62045 -> 9013019.243 | L27: =(D27*ROR!$H$45-C27)/0.62045 -> 9013019.243
A28: 21 | B28: Adjustment 11.20-Payment Processing Costs | C28: -1449116.577 | D28: 0 | E28: 2335589.615 | G28: =(D28*ROR!$H$10-C28)/0.62045 -> 2335589.615 | H28: =(D28*ROR!$H$17-C28)/0.62045 -> 2335589.615 | I28: =(D28*ROR!$H$24-C28)/0.62045 -> 2335589.615 | J28: =(D28*ROR!$H$31-C28)/0.62045 -> 2335589.615 | K28: =(D28*ROR!$H$38-C28)/0.62045 -> 2335589.615 | L28: =(D28*ROR!$H$45-C28)/0.62045 -> 2335589.615
A29: 22 | B29: Adjustment 11.21-South King Service Center | C29: 212048.2905 | D29: 7775115.695 | E29: 610622.1329 | G29: =(D29*ROR!$H$10-C29)/0.62045 -> 610622.1329 | H29: =(D29*ROR!$H$17-C29)/0.62045 -> 604356.426 | I29: =(D29*ROR!$H$24-C29)/0.62045 -> 598090.7191 | J29: =(D29*ROR!$H$31-C29)/0.62045 -> 591825.0122 | K29: =(D29*ROR!$H$38-C29)/0.62045 -> 585559.3053 | L29: =(D29*ROR!$H$45-C29)/0.62045 -> 570521.6087
A30: 23 | B30: Adjustment 11.22-Excise Tax and WUTC Filing Fee | C30: 33509.15606 | D30: 0 | E30: -54007.82668 | G30: =(D30*ROR!$H$10-C30)/0.62045 -> -54007.82668 | H30: =(D30*ROR!$H$17-C30)/0.62045 -> -54007.82668 | I30: =(D30*ROR!$H$24-C30)/0.62045 -> -54007.82668 | J30: =(D30*ROR!$H$31-C30)/0.62045 -> -54007.82668 | K30: =(D30*ROR!$H$38-C30)/0.62045 -> -54007.82668 | L30: =(D30*ROR!$H$45-C30)/0.62045 -> -54007.82668
A31: 24 | B31: Adjustment 11.23-ISWC and RB Adjustment | D31: 4743345.688 | E31: 581020.6661 | G31: =(D31*ROR!$H$10-C31)/0.62045 -> 581020.6661 | H31: =(D31*ROR!$H$17-C31)/0.62045 -> 577198.1617 | I31: =(D31*ROR!$H$24-C31)/0.62045 -> 573375.6574 | J31: =(D31*ROR!$H$31-C31)/0.62045 -> 569553.153 | K31: =(D31*ROR!$H$38-C31)/0.62045 -> 565730.6486 | L31: =(D31*ROR!$H$45-C31)/0.62045 -> 556556.6381
A32: 25 | B32: Adjustment 11.24-Legal Cost Adjustment | C32: 0 | D32: 0 | E32: 0 | G32: =(D32*ROR!$H$10-C32)/0.62045 -> 0 | H32: =(D32*ROR!$H$17-C32)/0.62045 -> 0 | I32: =(D32*ROR!$H$24-C32)/0.62045 -> 0 | J32: =(D32*ROR!$H$31-C32)/0.62045 -> 0 | K32: =(D32*ROR!$H$38-C32)/0.62045 -> 0 | L32: =(D32*ROR!$H$45-C32)/0.62045 -> 0
A33: 26 | B33: Adjustment 11.25-Black Box Adjustment | C33: 930675.1704 | D33: 0 | E33: -1500000.275 | G33: =(D33*ROR!$H$10-C33)/0.62045 -> -1500000.275 | H33: =(D33*ROR!$H$17-C33)/0.62045 -> -1500000.275 | I33: =(D33*ROR!$H$24-C33)/0.62045 -> -1500000.275 | J33: =(D33*ROR!$H$31-C33)/0.62045 -> -1500000.275 | K33: =(D33*ROR!$H$38-C33)/0.62045 -> -1500000.275 | L33: =(D33*ROR!$H$45-C33)/0.62045 -> -1500000.275
A34: 27 | B34: Adjustment 07.01-Gas Cost Recovery Mechanism | C34: -4003723.998 | D34: 19011708.41 | E34: 8781713.01 | G34: =(D34*ROR!$H$10-C34)/0.62045 -> 8781713.01 | H34: =(D34*ROR!$H$17-C34)/0.62045 -> 8766392.107 | I34: =(D34*ROR!$H$24-C34)/0.62045 -> 8751071.204 | J34: =(D34*ROR!$H$31-C34)/0.62045 -> 8735750.301 | K34: =(D34*ROR!$H$38-C34)/0.62045 -> 8720429.398 | L34: =(D34*ROR!$H$45-C34)/0.62045 -> 8683659.231
A35: 28 | B35: Adjusted Results of Operations | C35: 123853234 | D35: 1765436979 | E35: 16633050.89 | G35: =SUM(G8:G34) -> 16633050.89 | H35: =SUM(H8:H34) -> 15210344 | I35: 13787637.11 | J35: 12364930.22 | K35: 10942223.34 | L35: 7527726.801
A36: 29 | B36: Changes to Other Price Schedules | E36: -52098690.32 | G36: =E36 -> -52098690.32 | H36: =E36 -> -52098690.32 | I36: =E36 -> -52098690.32 | J36: =E36 -> -52098690.32 | K36: =E36 -> -52098690.32 | L36: =E36 -> -52098690.32
A37: 30 | B37: Overall Natural Gas Revenue Requirement Surplus Using Different ROEs | E37: -35465639.42 | G37: =G35+G36 -> -35465639.42 | H37: =H35+H36 -> -36888346.31 | I37: -38311053.2 | J37: -39733760.09 | K37: -41156466.98 | L37: -44570963.52
A38: 31 | B38: Overall Natural Gas Revenue Requirement Surplus Per Settlement | G38: -35465639.42 | H38: -35465639.42 | I38: -35465639.42 | J38: -35465639.42 | K38: -35465639.42 | L38: -35465639.42
A39: 32 | B39: Difference | G39: =G37-G38 -> 0 | H39: =H37-H38 -> -1422706.889 | I39: -2845413.779 | J39: -4268120.668 | K39: -5690827.557 | L39: -9105324.092
A41: Notes and Source
A42: Cols. A-C: Amounts from Exhibit A to Multiparty Settlement Stipulation and Agreement
A43: Col. D: (Note 1) calculated as Column (B) x 7.60% rate of return per paragraph 11 of the Settlement less Column (A) and the result is divided by the natural gas conversion factor of .620450 from Exhibit MCC-8r at 3

Sheet ROR
D6: Capital | H6: Weighted
B7: Description | D7: Structure | F7: Cost | H7: Cost
B8: Long-Term Debt | D8: 0.515 | F8: 0.05805825243 | H8: =ROUND(D8*F8,4) -> 0.0299
B9: Preferred Stock | D9: 0.485 | F9: 0.095 | H9: =ROUND(D9*F9,4) -> 0.0461
B10: Total Capital Structure | D10: =D8+D9 -> 1 | H10: =H8+H9 -> 0.076
D13: Capital | H13: Weighted
B14: Description | D14: Structure | F14: Cost | H14: Cost
B15: Long-Term Debt | D15: 0.515 | F15: 0.05805825243 | H15: =ROUND(D15*F15,4) -> 0.0299
B16: Preferred Stock | D16: 0.485 | F16: 0.094 | H16: =ROUND(D16*F16,4) -> 0.0456
B17: Total Capital Structure | D17: =D15+D16 -> 1 | H17: =H15+H16 -> 0.0755
D20: Capital | H20: Weighted
B21: Description | D21: Structure | F21: Cost | H21: Cost
B22: Long-Term Debt | D22: 0.515 | F22: 0.05805825243 | H22: =ROUND(D22*F22,4) -> 0.0299
B23: Preferred Stock | D23: 0.485 | F23: 0.093 | H23: =ROUND(D23*F23,4) -> 0.0451
B24: Total Capital Structure | D24: =D22+D23 -> 1 | H24: =H22+H23 -> 0.075
D27: Capital | H27: Weighted
B28: Description | D28: Structure | F28: Cost | H28: Cost
B29: Long-Term Debt | D29: 0.515 | F29: 0.05805825243 | H29: =ROUND(D29*F29,4) -> 0.0299
B30: Preferred Stock | D30: 0.485 | F30: 0.092 | H30: =ROUND(D30*F30,4) -> 0.0446
B31: Total Capital Structure | D31: =D29+D30 -> 1 | H31: =H29+H30 -> 0.0745
D34: Capital | H34: Weighted
B35: Description | D35: Structure | F35: Cost | H35: Cost
B36: Long-Term Debt | D36: 0.515 | F36: 0.05805825243 | H36: =ROUND(D36*F36,4) -> 0.0299
B37: Preferred Stock | D37: 0.485 | F37: 0.091 | H37: =ROUND(D37*F37,4) -> 0.0441
B38: Total Capital Structure | D38: =D36+D37 -> 1 | H38: =H36+H37 -> 0.074
D41: Capital | H41: Weighted
B42: Description | D42: Structure | F42: Cost | H42: Cost
B43: Long-Term Debt | D43: 0.515 | F43: 0.05805825243 | H43: =ROUND(D43*F43,4) -> 0.0299
B44: Preferred Stock | D44: 0.485 | F44: 0.0885 | H44: =ROUND(D44*F44,4) -> 0.0429
B45: Total Capital Structure | D45: =D43+D44 -> 1 | H45: =H43+H44 -> 0.0728
